bitfinex-derivatives/quotes_SOLF0:USTF0_20260213
["timestamp","ask_amount","ask_price","bid_price","bid_amount"]
[1770991346160,269.7415551,80.343,80.24,3.57763437]
[1770991346161,7.32663461,80.299,80.261,11.52283538]
[1770991346459,10.90426898,80.27,80.228,7.73289171]
[1770991346654,7.32663461,80.269,80.228,7.73289171]
[1770991346855,7.32663461,80.259,80.215,7.73289171]
[1770991347455,7.32663461,80.25,80.213,11.2284]
[1770991347654,7.32663461,80.249,80.193,7.73289171]
[1770991348156,7.32663461,80.249,80.201,11.2302]
[1770991348356,7.32663461,80.249,80.202,7.73289171]
[1770991348955,7.32663461,80.249,80.204,7.73289171]
[1770991349860,174.489,80.295,80.191,11.2315]
[1770991349861,7.32663461,80.236,80.191,11.2315]
[1770991350258,7.32663461,80.236,80.192,7.73289171]
[1770991352560,7.31297835,80.251,80.21,7.25944079]
[1770991352760,11.2224,80.257,80.21,7.25944079]
[1770991352960,7.31297835,80.256,80.21,7.25944079]
[1770991353757,7.31297835,80.256,80.211,11.2287]
[1770991354262,7.31297835,80.249,80.191,7.25944079]
[1770991354565,7.31297835,80.239,80.191,7.25944079]
[1770991354762,7.31297835,80.234,80.191,7.25944079]
[1770991354967,7.31297835,80.229,80.179,7.25944079]
[1770991355167,3.81297835,80.229,80.179,7.25944079]
[1770991355664,11.2266,80.227,80.181,11.233]
[1770991356866,3.57763437,80.22,80.181,11.233]
[1770991357659,3.57763437,80.22,80.179,7.25944079]
[1770991357968,10.78218791,80.22,80.179,7.25944079]
[1770991358363,7.20455354,80.216,80.166,7.10271983]
[1770991358660,7.20455354,80.199,80.154,7.10271983]
[1770991359559,7.20455354,80.189,80.145,7.10271983]
[1770991360578,7.20455354,80.186,80.145,7.10271983]
[1770991361182,7.20455354,80.186,80.13,3.57763437]
[1770991361183,7.20455354,80.196,80.148,7.10271983]
[1770991361673,3.57763437,80.19,80.148,7.10271983]
[1770991362182,7.20455354,80.189,80.148,7.10271983]
[1770991362378,7.20455354,80.188,80.148,7.10271983]
[1770991363771,11.2324,80.186,80.148,7.10271983]
[1770991365281,7.20455354,80.183,80.142,11.2384]
[1770991366186,18.43755354,80.182,80.142,11.2384]
[1770991366576,7.20455354,80.182,80.146,11.2378]
[1770991366876,7.20455354,80.179,80.097,7.10271983]
[1770991367082,7.20455354,80.159,80.101,7.10271983]
[1770991367884,7.20455354,80.159,80.111,7.10271983]
[1770991368073,7.20455354,80.159,80.122,11.2412]
[1770991368274,7.20455354,80.173,80.123,7.10271983]
[1770991368678,11.2343,80.172,80.123,7.10271983]
[1770991368883,7.20455354,80.189,80.123,7.10271983]
[1770991369087,10.78218791,80.18,80.123,7.10271983]
[1770991369387,7.20455354,80.179,80.13,3.57763437]
[1770991369578,7.20455354,80.179,80.133,7.10271983]
[1770991369579,11.2336,80.177,80.133,7.10271983]
[1770991371785,11.2336,80.177,80.134,11.2395]
[1770991372084,7.20455354,80.176,80.134,11.2395]
[1770991372286,11.234,80.174,80.134,11.2395]
[1770991373379,7.20455354,80.176,80.134,18.34221983]
[1770991373581,11.2329,80.182,80.142,7.10271983]
[1770991373785,7.20455354,80.181,80.142,7.10271983]
[1770991374285,7.20455354,80.181,80.101,129.02]
[1770991374286,11.232,80.189,80.144,7.10271983]
[1770991374985,7.20455354,80.21,80.154,7.10271983]
[1770991376288,11.2277,80.219,80.178,7.10271983]
[1770991376987,7.20455354,80.227,80.178,7.10271983]
[1770991378083,18.43115354,80.227,80.182,11.2328]
[1770991379485,11.2256,80.234,80.189,11.2318]
[1770991379685,11.2256,80.234,80.19,7.10271983]
[1770991380289,11.2256,80.234,80.192,7.10271983]
[1770991380488,7.20455354,80.24,80.192,7.10271983]
[1770991380890,7.20455354,80.24,80.2,3.58301033]
[1770991381089,7.20455354,80.24,80.207,11.2293]
[1770991381287,7.50041794,80.253,80.211,7.58617205]
[1770991381890,11.2231,80.252,80.211,7.58617205]
[1770991382194,7.50041794,80.253,80.211,7.58617205]
[1770991382493,7.50041794,80.248,80.2,14.81321033]
[1770991383287,7.50041794,80.248,80.208,7.58617205]
[1770991383490,7.50041794,80.248,80.21,11.16918238]
[1770991383693,7.50041794,80.261,80.211,7.58617205]
[1770991383994,7.50041794,80.259,80.22,3.58301033]
[1770991384193,7.50041794,80.259,80.211,7.58617205]
[1770991384883,7.50041794,80.259,80.212,11.2286]
[1770991385487,7.50041794,80.257,80.212,11.2286]
[1770991386195,7.50041794,80.257,80.22,3.58301033]
[1770991387988,7.50041794,80.255,80.204,11.2297]
[1770991388294,7.50041794,80.255,80.2,3.58301033]
[1770991389192,7.50041794,80.239,80.184,7.58617205]
[1770991389387,7.50041794,80.239,80.19,3.58301033]
[1770991390399,7.50041794,80.234,80.19,3.58301033]
[1770991390991,7.50041794,80.249,80.2,3.58301033]
[1770991391197,7.50041794,80.249,80.21,3.58301033]
[1770991391501,7.50041794,80.249,80.2,3.58301033]
[1770991391700,7.50041794,80.248,80.21,3.58301033]
[1770991392092,7.50041794,80.239,80.19,3.58301033]
[1770991392291,7.50041794,80.231,80.19,3.58301033]
[1770991392593,7.50041794,80.231,80.186,7.58617205]
[1770991392800,7.50041794,80.229,80.186,7.58617205]
[1770991393095,7.50041794,80.219,80.17,3.58301033]
[1770991393501,7.50041794,80.212,80.17,3.58301033]
[1770991394095,7.50041794,80.208,80.17,3.58301033]
[1770991394702,7.50041794,80.206,80.168,11.2347]
[1770991395693,7.50041794,80.206,80.161,11.2357]
[1770991395694,11.2299,80.203,80.161,11.2357]
[1770991395995,7.50041794,80.202,80.16,11.16918238]
[1770991396198,7.50041794,80.202,80.16,3.58301033]
[1770991396400,7.50041794,80.192,80.15,3.58301033]
[1770991396602,7.50041794,80.192,80.146,11.2379]
[1770991396802,7.50041794,80.192,80.151,7.58617205]
[1770991397404,11.2329,80.182,80.151,7.58617205]
[1770991397607,18.73331794,80.182,80.14,3.58301033]
[1770991398803,7.50041794,80.178,80.138,7.58617205]
[1770991399100,11.2346,80.17,80.131,11.2399]
[1770991399702,18.73531794,80.168,80.125,7.58617205]
[1770991400096,7.50041794,80.167,80.13,3.58301033]
[1770991400404,7.50041794,80.165,80.111,7.58617205]
[1770991401105,7.50041794,80.158,80.111,7.58617205]
[1770991401706,7.50041794,80.153,80.107,11.2433]
[1770991402109,7.50041794,80.159,80.111,7.58617205]
[1770991402300,7.50041794,80.157,80.114,11.2423]
[1770991403102,11.2351,80.166,80.118,7.58617205]
[1770991403304,7.50041794,80.165,80.118,7.58617205]
[1770991404110,7.50041794,80.159,80.118,7.58617205]
[1770991404509,7.50041794,80.159,80.108,11.2431]
[1770991405007,11.2374,80.15,80.105,7.58617205]
[1770991405505,7.50041794,80.149,80.105,7.58617205]
[1770991405902,7.50041794,80.144,80.097,11.2446]
[1770991407512,7.50041794,80.144,80.084,2.17185082]
[1770991407513,11.2385,80.142,80.101,11.2442]
[1770991407909,7.50041794,80.144,80.101,18.83037205]
[1770991408110,7.50041794,80.144,80.104,7.58617205]
[1770991409312,7.50041794,80.157,80.107,7.58617205]
[1770991409510,7.50041794,80.157,80.085,7.58617205]
[1770991410711,11.2386,80.141,80.101,11.2441]
[1770991410912,7.50041794,80.157,80.102,7.21780376]
[1770991411803,7.50041794,80.157,80.104,7.21780376]
[1770991412917,11.2374,80.15,80.104,7.21780376]
[1770991413216,7.54633923,80.149,80.104,7.21780376]
[1770991413414,11.238,80.146,80.106,7.21780376]
[1770991414319,7.54633923,80.149,80.107,11.2433]
[1770991414904,11.2377,80.148,80.107,11.2433]
[1770991415314,18.78403923,80.148,80.106,7.21780376]
[1770991415514,11.2381,80.145,80.106,7.21780376]
[1770991416605,7.54633923,80.147,80.114,11.2423]
[1770991416813,7.24892313,80.16,80.106,7.21780376]
[1770991417714,18.48522313,80.158,80.114,11.2423]
[1770991418622,7.24892313,80.153,80.107,11.2433]
[1770991419521,11.2379,80.146,80.1,11.2442]
[1770991419719,11.2379,80.146,80.1,18.21179196]
[1770991419720,18.48682313,80.146,80.1,18.21179196]
[1770991419915,7.24892313,80.145,80.1,18.21179196]
[1770991420820,7.24892313,80.141,80.1,18.21179196]
[1770991421717,11.2387,80.14,80.1,18.21179196]
[1770991422024,7.24892313,80.139,80.092,11.2454]
[1770991422324,11.2396,80.134,80.075,6.96759196]
[1770991422920,3.59168307,80.13,80.081,6.96759196]
[1770991423721,11.2403,80.129,80.081,6.96759196]
[1770991424024,3.59168307,80.13,80.081,6.96759196]
[1770991424225,22.0808062,80.13,80.09,11.2456]
[1770991425017,7.24892313,80.13,80.092,11.2454]
[1770991426330,10.8406062,80.13,80.091,6.96759196]
[1770991426524,7.24892313,80.129,80.091,6.96759196]
[1770991426719,7.24892313,80.129,80.078,6.96759196]
[1770991426925,3.59168307,80.12,80.078,6.96759196]
[1770991427524,11.2419,80.118,80.078,18.21499196]
[1770991427725,3.59168307,80.12,80.078,6.96759196]
[1770991427921,7.24892313,80.129,80.081,6.96759196]
[1770991428532,7.24892313,80.129,80.106,3.5]
[1770991429231,11.2413,80.122,80.082,6.96759196]
[1770991429928,11.2413,80.122,80.083,11.2466]
[1770991433335,11.2421,80.117,80.082,6.96759196]
[1770991433529,7.24892313,80.119,80.082,6.96759196]
[1770991434736,11.2429,80.111,80.082,6.96759196]
[1770991434935,11.2429,80.111,80.076,11.2476]
[1770991435126,7.24892313,80.111,80.07,6.96759196]
[1770991435434,11.2436,80.106,80.07,6.96759196]
[1770991436030,11.2436,80.106,80.071,11.2483]
[1770991436424,18.49252313,80.106,80.071,11.2483]
[1770991436630,11.2444,80.1,80.07,6.96759196]
[1770991436837,7.24892313,80.099,80.062,11.2497]
[1770991437931,11.2428,80.111,80.074,6.96759196]
[1770991438427,7.24892313,80.11,80.074,6.96759196]
[1770991438822,7.24892313,80.11,80.075,11.2478]
[1770991440133,7.24892313,80.11,80.075,18.21539196]
[1770991440831,11.2428,80.111,80.076,7.11604748]
[1770991441933,18.26525299,80.105,80.062,18.36564748]
[1770991442142,7.02165299,80.09,80.051,7.11604748]
[1770991442634,7.02165299,80.088,80.045,11.2519]
[1770991443031,7.02165299,80.088,80.045,18.36794748]
[1770991443230,7.02165299,80.088,80.049,7.11604748]
[1770991444034,7.02165299,80.076,80.034,2.17329532]
[1770991444238,7.02165299,80.076,80.034,7.11604748]
[1770991444936,7.02165299,80.076,80.035,11.2534]
[1770991445636,7.02165299,80.072,80.025,22.77544673]
[1770991445939,7.02165299,80.072,80.026,7.11604748]
[1770991446636,7.02165299,80.072,80.035,7.11604748]
[1770991447637,11.2486,80.07,80.035,7.11604748]
[1770991447835,7.02165299,80.072,80.035,7.11604748]
[1770991448040,11.2486,80.07,80.035,7.11604748]
[1770991448239,7.02165299,80.072,80.035,7.11604748]
[1770991448547,7.02165299,80.087,80.04,3.59286716]
[1770991448744,7.02165299,80.087,80.041,7.11604748]
[1770991449840,11.2464,80.086,80.043,7.11604748]
[1770991450239,7.02165299,80.085,80.043,7.11604748]
[1770991450844,11.2469,80.082,80.045,7.11604748]
[1770991451238,7.02165299,80.085,80.046,18.36794748]
[1770991451643,7.02165299,80.097,80.051,7.11604748]
[1770991452044,7.02165299,80.088,80.051,7.11604748]
[1770991452244,7.02165299,80.088,80.033,7.11604748]
[1770991452942,7.02165299,80.078,80.033,7.11604748]
[1770991453743,7.02165299,80.078,80.037,11.2532]
[1770991453948,7.02165299,80.078,80.037,18.36924748]
[1770991454352,7.02165299,80.057,80.017,7.11604748]
[1770991454945,7.02165299,80.055,80.017,7.11604748]
[1770991456243,7.02165299,80.055,80.002,11.52054673]
[1770991456244,7.02165299,80.053,80.005,7.11604748]
[1770991456548,7.02165299,80.049,80.005,7.11604748]
[1770991457538,3.59286716,80.04,80.005,7.11604748]
[1770991458036,7.02165299,80.039,79.991,7.11604748]
[1770991458236,7.02165299,80.039,79.992,7.11604748]
[1770991459150,7.02165299,80.029,79.979,7.11604748]
[1770991459744,11.2551,80.024,79.979,7.11604748]
[1770991459944,7.02165299,80.029,79.979,7.11604748]
[1770991460345,3.59286716,80.04,79.983,7.11604748]
[1770991460648,10.61452015,80.04,79.991,7.11604748]
[1770991460852,7.02165299,80.04,80.0,3.59286716]
[1770991461154,7.02165299,80.039,79.993,7.11604748]
[1770991461347,11.2545,80.028,79.982,7.11604748]
[1770991461552,3.59286716,80.03,79.98,3.59286716]
[1770991461553,7.02165299,80.027,79.98,3.59286716]
[1770991461753,7.02165299,80.027,79.973,7.11604748]
[1770991461947,7.02165299,80.024,79.976,7.11604748]
[1770991462349,7.02165299,80.019,79.97,3.59286716]
[1770991462642,7.02165299,80.019,79.971,11.2623]
[1770991462643,11.2562,80.016,79.971,11.2623]
[1770991462849,7.02165299,80.019,79.972,7.11604748]
[1770991463446,7.02165299,80.013,79.972,7.11604748]
[1770991463642,7.02165299,80.013,79.961,7.11604748]
[1770991464150,3.59286716,80.0,79.961,7.11604748]
[1770991464352,7.02165299,80.0,79.95,3.59286716]
[1770991464549,7.02165299,79.999,79.95,3.59286716]
[1770991464853,7.02165299,79.999,79.95,10.70891464]
[1770991465954,7.02165299,79.989,79.94,3.59286716]
[1770991466153,7.02165299,79.989,79.941,7.11604748]
[1770991466453,7.02165299,79.987,79.942,11.2665]
[1770991467048,99.48,80.025,79.943,7.11604748]
[1770991467049,7.02165299,79.985,79.943,7.11604748]
[1770991467753,18.28305299,79.979,79.934,11.2676]
[1770991467953,7.02165299,79.979,79.931,7.11604748]
[1770991468348,3.59286716,79.97,79.931,7.11604748]
[1770991468545,7.02165299,79.979,79.931,7.11604748]
[1770991468957,7.02165299,79.979,79.932,11.2679]
[1770991469648,7.02165299,79.979,79.904,2.17663247]
[1770991469649,7.02165299,79.979,79.936,11.2674]
[1770991470045,7.02165299,79.979,79.942,18.38244748]
[1770991470250,7.02165299,79.993,79.951,7.11604748]
[1770991470852,7.02165299,79.993,79.953,18.36745358]
[1770991471049,7.02165299,79.993,79.954,7.10255358]
[1770991471250,7.02165299,79.993,79.94,3.59286716]
[1770991471251,7.02165299,79.993,79.941,7.10255358]
[1770991471553,7.02165299,79.993,79.95,14.85826716]
[1770991471859,7.02165299,79.993,79.95,21.96082074]
[1770991472654,11.2597,79.991,79.95,7.10255358]
[1770991473454,11.2597,79.991,79.951,11.2653]
[1770991473656,18.67779445,79.991,79.951,11.2653]
[1770991473856,7.41809445,79.99,79.951,11.2653]
[1770991474058,11.2588,79.997,79.952,7.10255358]
[1770991474260,7.41809445,79.996,79.952,7.10255358]
[1770991474560,7.41809445,79.989,79.94,3.59286716]
[1770991475561,7.41809445,79.989,79.95,11.2653]
[1770991476857,7.26494093,80.004,79.956,7.34804469]
[1770991477057,7.26494093,80.004,79.961,7.34804469]
[1770991477460,7.26494093,80.004,79.95,3.59286716]
[1770991477660,7.26494093,80.004,79.965,11.2633]
[1770991478256,7.26494093,79.99,79.949,11.2656]
[1770991478457,7.26494093,79.99,79.947,7.34804469]
[1770991478753,7.26494093,79.99,79.95,3.59286716]
[1770991478956,7.26494093,79.989,79.93,7.34804469]
[1770991479159,7.26494093,79.989,79.941,7.34804469]
[1770991480163,7.26494093,79.989,79.951,11.2653]
[1770991480362,7.26494093,80.004,79.96,3.59286716]
[1770991480551,7.26494093,80.004,79.961,7.34804469]
[1770991481859,7.26494093,80.002,79.959,11.2641]
[1770991483060,7.26494093,79.999,79.959,11.2641]
[1770991485271,7.26494093,79.999,79.965,11.2633]
[1770991485970,7.26494093,79.997,79.958,11.2642]
[1770991487063,7.26494093,79.997,79.952,11.2651]
[1770991487372,7.26494093,79.997,79.951,7.34804469]
[1770991487565,7.26494093,79.997,79.957,11.2643]
[1770991488569,7.26494093,79.997,79.963,11.2635]
[1770991488970,3.59286716,80.0,79.956,11.2645]
[1770991488971,7.26494093,79.995,79.956,11.2645]
[1770991490269,7.26494093,79.995,79.956,18.61254469]
[1770991490472,7.26494093,79.995,79.961,11.2639]
[1770991492272,7.26494093,79.995,79.967,11.263]
[1770991492478,7.26494093,79.995,79.96,3.59286716]
[1770991493168,7.26494093,79.995,79.961,11.2639]
[1770991495374,11.2579,80.004,79.968,7.34804469]
[1770991495875,11.2584,80.0,79.968,7.34804469]
[1770991496373,7.26494093,79.999,79.961,11.2638]
[1770991496570,7.26494093,79.997,79.961,11.2638]
[1770991497876,7.26494093,79.997,79.966,11.2631]
[1770991498073,7.26494093,80.01,79.971,7.34804469]
[1770991498978,7.26494093,80.01,79.97,3.59286716]
[1770991498979,7.26494093,80.019,79.977,7.34804469]
[1770991499477,7.26494093,80.019,79.961,7.34804469]
[1770991499671,7.26494093,80.009,79.961,7.34804469]
[1770991499872,7.26494093,80.009,79.965,11.2632]
[1770991500864,11.2594,79.994,79.961,7.34804469]
[1770991502069,7.30322638,79.999,79.961,7.34804469]
[1770991502574,11.2588,79.997,79.961,7.34804469]
[1770991504578,7.30322638,79.988,79.951,11.52054673]
[1770991504774,7.30322638,79.999,79.952,6.87515196]
[1770991505275,7.30322638,79.999,79.956,6.87515196]
[1770991505478,7.30322638,79.999,79.961,6.87515196]
[1770991505979,11.2589,79.997,79.961,6.87515196]
[1770991506482,11.26,79.989,79.96,11.52054673]
[1770991506679,11.26,79.989,79.959,6.87515196]
[1770991507878,11.26,79.989,79.953,11.52054673]
[1770991508071,7.30322638,79.995,79.954,6.87515196]
[1770991508277,7.30322638,79.995,79.954,18.39569869]
[1770991508480,7.30322638,79.995,79.954,11.52054673]
[1770991508778,11.2605,79.985,79.954,11.52054673]
[1770991509181,11.2605,79.985,79.955,11.52054673]
[1770991509380,3.60270933,79.99,79.955,11.52054673]
[1770991509680,7.30322638,79.989,79.955,11.52054673]
[1770991510181,7.30322638,79.98,79.955,11.52054673]
[1770991510481,10.90593571,79.98,79.949,11.52054673]
[1770991510674,7.30322638,79.98,79.949,11.52054673]
[1770991511370,11.2616,79.978,79.949,11.52054673]
[1770991512281,7.30322638,79.994,79.953,6.87515196]
[1770991512476,7.30322638,79.994,79.955,11.52054673]
[1770991513478,11.2604,79.986,79.953,6.87515196]
[1770991513679,7.30322638,79.985,79.95,11.52054673]
[1770991515088,3.60270933,79.98,79.95,11.52054673]
[1770991515283,7.30322638,79.979,79.95,11.52054673]
[1770991515677,11.263,79.968,79.947,11.52054673]
[1770991515883,11.263,79.968,79.921,11.2694]
[1770991515884,7.30322638,79.967,79.92,10.47786129]
[1770991516386,7.30322638,79.967,79.92,6.87515196]
[1770991516581,7.30322638,79.967,79.921,6.87515196]
[1770991516782,11.2642,79.959,79.921,6.87515196]
[1770991517790,18.56642638,79.966,79.921,6.87515196]
[1770991517983,7.30322638,79.949,79.904,6.87515196]
[1770991518185,11.2631,79.967,79.928,6.87515196]
[1770991520593,18.30882347,79.967,79.928,6.87515196]
[1770991521592,7.04572347,79.96,79.914,7.07769069]
[1770991522879,7.04572347,79.96,79.921,7.07769069]
[1770991523492,18.30982347,79.96,79.921,7.07769069]
[1770991523989,7.04572347,79.953,79.91,3.60270933]
[1770991524195,10.6484328,79.95,79.909,7.07769069]
[1770991524393,7.04572347,79.949,79.909,7.07769069]
[1770991524988,11.2668,79.941,79.909,7.07769069]
[1770991525394,11.2668,79.941,79.891,7.07769069]
[1770991525794,11.2668,79.941,79.899,7.07769069]
[1770991527393,7.04572347,79.948,79.904,7.07769069]
[1770991527598,10.6484328,79.96,79.91,3.60270933]
[1770991527789,7.04572347,79.959,79.911,7.07769069]
[1770991527993,11.2655,79.95,79.912,7.07769069]
[1770991528588,7.04572347,79.964,79.92,7.07769069]
[1770991529002,3.60270933,79.96,79.92,7.07769069]
[1770991529194,7.04572347,79.964,79.92,7.07769069]
[1770991529596,7.04572347,79.979,79.922,7.07769069]
[1770991530686,11.2629,79.969,79.922,7.07769069]
[1770991530885,7.04572347,79.979,79.925,7.27539761]
[1770991531596,7.08324018,79.991,79.941,7.27539761]
[1770991531999,7.08324018,79.991,79.951,7.27539761]
[1770991532189,11.2595,79.993,79.951,7.27539761]
[1770991532595,11.2571,80.01,79.961,7.27539761]
[1770991532789,7.08324018,80.009,79.961,7.27539761]
[1770991532999,7.08324018,79.999,79.949,7.27539761]
[1770991533386,7.08324018,79.999,79.93,15.20268314]
[1770991533387,7.08324018,79.999,79.95,10.87810694]
[1770991533592,7.08324018,79.999,79.951,7.27539761]
[1770991533990,7.08324018,79.999,79.961,7.27539761]
[1770991534399,7.08324018,80.009,79.971,7.27539761]
[1770991534800,7.08324018,80.021,79.98,3.60270933]
[1770991534997,3.60270933,80.05,80.0,3.60270933]
[1770991535191,7.08324018,80.029,79.981,7.27539761]
[1770991535394,18.33914018,80.019,79.981,7.27539761]
[1770991535597,3.60270933,80.02,79.946,121.3]
[1770991535598,7.08324018,80.018,79.967,7.27539761]
[1770991535798,3.60270933,80.01,79.967,7.27539761]
[1770991536094,7.08324018,80.018,79.971,7.27539761]
[1770991536292,7.05914434,80.034,79.99,3.60270933]
[1770991536507,3.60270933,80.04,79.99,3.60270933]
[1770991536508,7.05914434,80.033,79.99,3.60270933]
[1770991537105,7.05914434,80.033,79.991,6.9365585]
[1770991537602,7.05914434,80.029,79.98,3.60270933]
[1770991537800,7.05914434,80.029,79.981,6.9365585]
[1770991538403,7.05914434,80.029,79.991,6.9365585]
[1770991538796,11.2528,80.04,79.991,6.9365585]
[1770991539002,11.2528,80.04,80.0,3.60270933]
[1770991539605,7.05914434,80.054,80.01,10.53926783]
[1770991539803,7.05914434,80.049,79.996,6.9365585]
[1770991540008,3.60270933,80.04,79.996,6.9365585]
[1770991540306,7.05914434,80.039,79.996,6.9365585]
[1770991541504,14.85420933,80.05,80.001,6.9365585]
[1770991541704,18.31064434,80.05,80.001,6.9365585]
[1770991542008,7.05914434,80.049,80.001,6.9365585]
[1770991542604,7.05914434,80.044,80.001,6.9365585]
[1770991544203,11.2512,80.052,80.011,6.9365585]
[1770991544605,11.2512,80.052,80.02,3.60270933]
[1770991545302,11.2495,80.064,80.021,6.9365585]
[1770991545507,11.2495,80.064,80.03,3.60270933]
[1770991545902,11.2495,80.064,80.031,6.9365585]
[1770991546109,7.05914434,80.069,80.02,3.60270933]
[1770991546308,7.05914434,80.069,79.945,30.92660796]
[1770991546309,7.05914434,80.049,80.0,10.53926783]
[1770991546503,7.05914434,80.049,80.0,6.9365585]
[1770991546708,7.05914434,80.049,79.99,3.60270933]
[1770991546908,7.05914434,80.039,79.99,3.60270933]
[1770991547807,7.05914434,80.034,79.99,3.60270933]
[1770991548001,7.05914434,80.034,79.991,6.9365585]
[1770991548812,7.05914434,80.029,79.98,10.53926783]
[1770991549013,7.05914434,80.029,79.981,6.9365585]
[1770991549814,7.05914434,80.026,79.981,6.9365585]
[1770991550020,7.05914434,80.026,79.99,3.60270933]
[1770991551219,7.05914434,80.026,79.983,6.9365585]
[1770991552012,7.05914434,80.026,79.986,18.1968585]
[1770991552212,7.05914434,80.026,79.98,3.60270933]
[1770991552213,7.05914434,80.026,79.987,6.9365585]
[1770991552412,7.05914434,80.026,79.99,3.60270933]
[1770991553818,7.05914434,80.026,79.987,6.9365585]
[1770991554522,7.05914434,80.026,79.99,3.60270933]
[1770991554821,11.2537,80.034,79.991,6.9365585]
[1770991555813,11.2537,80.034,79.992,6.9365585]
[1770991556522,7.05914434,80.028,79.98,3.60270933]
[1770991556722,7.05914434,80.028,79.979,6.9365585]
[1770991557212,7.05914434,80.028,79.981,6.9365585]
[1770991557723,18.31374434,80.027,79.981,6.9365585]
[1770991558422,7.05914434,80.026,79.983,6.9365585]
[1770991558823,11.255,80.025,79.983,6.9365585]
[1770991559025,7.05914434,80.024,79.983,6.9365585]
[1770991559419,11.2553,80.022,79.983,6.9365585]
[1770991559620,7.05914434,80.022,79.983,6.9365585]
[1770991560120,11.2563,80.015,79.972,11.2623]
[1770991560331,11.2563,80.015,79.973,6.9365585]
[1770991560622,7.05914434,80.019,79.973,6.9365585]
[1770991560826,6.43825172,80.008,79.96,10.00178867]
[1770991561426,6.43825172,79.997,79.95,3.60270933]
[1770991561625,6.43825172,79.997,79.947,6.39907934]
[1770991562127,6.43825172,79.988,79.94,3.60270933]
[1770991562824,6.43825172,79.988,79.935,6.39907934]
[1770991563028,6.43825172,79.978,79.935,6.39907934]
[1770991563329,6.43825172,79.992,79.941,6.39907934]
[1770991563527,6.43825172,79.992,79.949,6.39907934]
[1770991563916,6.43825172,79.992,79.951,6.39907934]
[1770991564829,6.43825172,79.992,79.952,6.39907934]
[1770991565527,6.43825172,80.005,79.961,6.39907934]
[1770991566228,6.43825172,80.005,79.97,11.2625]
[1770991566429,6.43825172,80.005,79.961,6.39907934]
[1770991567227,6.43825172,80.002,79.961,6.39907934]
[1770991567431,6.43825172,79.999,79.948,6.39907934]
[1770991567731,6.43825172,79.989,79.94,3.60508347]
[1770991568226,6.43825172,79.979,79.935,6.39907934]
[1770991570727,3.60508347,79.99,79.943,6.39907934]
[1770991570924,6.43825172,79.992,79.951,6.39907934]
[1770991571124,3.60508347,80.0,79.951,6.39907934]
[1770991571320,6.43825172,80.006,79.951,6.39907934]
[1770991571532,6.43825172,80.006,79.952,6.39907934]
[1770991571732,6.43825172,80.006,79.961,6.39907934]
[1770991572527,6.43825172,79.999,79.94,10.00416281]
[1770991572726,6.43825172,79.989,79.941,6.39907934]
[1770991573424,11.2618,79.976,79.941,6.39907934]
[1770991574324,6.43825172,79.975,79.933,11.2678]
[1770991575833,11.2629,79.969,79.93,6.39907934]
[1770991576436,11.2637,79.963,79.93,6.39907934]
[1770991576630,11.2637,79.963,79.92,3.60508347]
[1770991576938,11.2637,79.963,79.921,11.2694]
[1770991577639,17.70195172,79.963,79.92,14.87468347]
[1770991578234,17.70195172,79.963,79.92,11.2696]
[1770991578439,11.2644,79.958,79.917,6.39907934]
[1770991579430,6.43825172,79.949,79.895,11.6227942]
[1770991579633,6.43825172,79.949,79.889,6.39907934]
[1770991580237,11.2672,79.938,79.896,11.2729]
[1770991580744,6.43825172,79.939,79.889,6.39907934]
[1770991581743,11.2681,79.932,79.89,11.2738]
[1770991581945,3.60508347,79.92,79.876,10.27723924]
[1770991582237,6.43825172,79.929,79.876,10.27723924]
[1770991582444,6.43825172,79.929,79.887,11.2742]
[1770991582641,6.43825172,79.929,79.888,6.39907934]
[1770991582938,11.56778376,79.99,79.888,6.39907934]
[1770991582939,17.70455172,79.944,79.89,3.60508347]
[1770991583138,17.70455172,79.944,79.891,6.39907934]
[1770991583741,11.2667,79.941,79.891,6.39907934]
[1770991583940,6.43825172,79.94,79.891,6.39907934]
[1770991584947,6.43825172,79.938,79.891,6.39907934]
[1770991585139,6.43825172,79.938,79.876,10.27723924]
[1770991585342,6.43825172,79.929,79.876,10.27723924]
[1770991586750,6.43825172,79.918,79.876,10.27723924]
[1770991587346,6.43825172,79.913,79.876,3.8781599]
[1770991587847,11.2709,79.912,79.876,3.8781599]
[1770991588044,17.70915172,79.912,79.876,3.8781599]
[1770991589152,9.67173406,79.95,79.877,6.39907934]
[1770991589153,11.2695,79.922,79.877,6.39907934]
[1770991590250,17.70775172,79.922,79.877,6.39907934]
[1770991590754,17.70775172,79.922,79.877,17.67477934]
[1770991591656,6.43825172,79.922,79.88,11.2753]
[1770991591951,99.58,79.957,79.876,3.8781599]
[1770991591952,6.56504457,79.936,79.881,6.61183494]
[1770991592359,6.56504457,79.936,79.894,11.2732]
[1770991592559,6.56504457,79.972,79.895,6.61183494]
[1770991592955,11.2672,79.938,79.895,6.61183494]
[1770991593361,17.83224457,79.938,79.895,6.61183494]